bitfinex-derivatives/quotes_ETHF0:USTF0_20250905
["timestamp","ask_amount","ask_price","bid_price","bid_amount"]
[1757030628453,0.238,4303.2,4303.1,0.694]
[1757030630552,3.2078,4303.6,4303.5,0.8117]
[1757030630853,3.4458,4303.6,4303.5,1.7636]
[1757030631347,3.2078,4303.6,4303.5,1.7636]
[1757030635252,3.2078,4303.6,4303.5,1.5526]
[1757030635444,7.2078,4303.6,4303.5,0.9519]
[1757030641259,3.2078,4303.6,4303.5,0.9519]
[1757030642165,3.2078,4303.6,4303.5,1.3596]
[1757030644160,3.88870759,4303.6,4303.5,1.3596]
[1757030644358,3.2078,4303.6,4303.5,1.7636]
[1757030644565,3.4458,4303.6,4303.5,1.7636]
[1757030644756,3.4458,4303.6,4303.5,1.5526]
[1757030645353,3.4458,4303.6,4303.5,1.7636]
[1757030646765,3.2078,4303.6,4303.5,1.7636]
[1757030646965,3.4458,4303.6,4303.5,1.7636]
[1757030648870,3.4458,4303.6,4303.5,5.7636]
[1757030649469,3.03561429,4303.6,4303.5,5.7636]
[1757030650167,2.79761429,4303.6,4303.5,5.7636]
[1757030652466,2.47631429,4303.6,4303.5,5.7636]
[1757030652666,0.7287,4304.8,4304.1,0.29]
[1757030652883,0.4238,4303.9,4303.8,4.0598]
[1757030653266,0.2136,4303.9,4303.8,4.0598]
[1757030654172,0.7287,4303.9,4303.8,3.9018]
[1757030654373,0.5185,4304.2,4304.1,0.694]
[1757030654572,0.7287,4304.2,4304.1,0.694]
[1757030655073,0.7287,4303.9,4303.8,3.6908]
[1757030655469,0.7287,4303.9,4303.8,3.4008]
[1757030655774,0.7287,4303.9,4303.5,1.0696]
[1757030655775,0.7287,4303.6,4303.5,0.9519]
[1757030655972,0.9667,4303.6,4303.5,0.9519]
[1757030659670,0.7287,4303.6,4303.5,1.6662]
[1757030659972,0.9667,4303.6,4303.5,1.6662]
[1757030661376,0.9667,4303.6,4303.5,1.7868]
[1757030661968,0.9667,4303.6,4303.5,1.6662]
[1757030664972,0.9667,4303.6,4303.5,1.7868]
[1757030665471,0.6618,4303.6,4303.5,1.7868]
[1757030666475,0.9695,4303.6,4303.5,1.7868]
[1757030666775,0.6618,4303.6,4303.5,1.7868]
[1757030667278,0.4516,4303.6,4303.5,1.7868]
[1757030667479,0.9598,4303.6,4303.5,1.6662]
[1757030667977,0.3077,4303.9,4303.5,1.4816]
[1757030668176,0.5042,4303.9,4303.8,0.7143]
[1757030668369,0.9427,4303.9,4303.8,0.7143]
[1757030668875,0.9427,4303.9,4303.8,0.213]
[1757030669582,0.9427,4303.9,4303.8,0.7143]
[1757030670277,0.9427,4303.9,4303.8,0.4091]
[1757030670780,0.9427,4303.9,4303.8,0.7143]
[1757030671781,0.9427,4303.9,4303.8,1.6259]
[1757030673980,0.3077,4304.3,4303.8,1.6259]
[1757030674182,4.0341,4304.5,4304.4,0.213]
[1757030674377,4.9507984,4304.5,4304.2,0.3052]
[1757030674576,4.2721,4304.5,4304.2,0.3052]
[1757030675386,4.0341,4304.5,4304.4,0.7143]
[1757030675586,3.9125,4304.5,4304.4,0.7143]
[1757030675885,4.1505,4304.5,4304.4,0.7143]
[1757030678586,4.2676,4304.5,4304.4,0.7143]
[1757030678785,4.1505,4304.5,4304.4,0.7143]
[1757030678982,3.2078,4305.0,4304.5,0.4258]
[1757030679182,3.9125,4305.0,4304.9,0.7143]
[1757030679388,4.2676,4305.0,4304.9,0.213]
[1757030679590,3.9599,4305.0,4304.9,0.213]
[1757030679790,4.2676,4305.0,4304.9,0.5182]
[1757030679990,4.2676,4305.0,4304.9,0.213]
[1757030680191,4.2676,4305.0,4304.6,0.3052]
[1757030680691,0.5042,4304.2,4304.1,0.7143]
[1757030680889,0.238,4304.3,4304.1,0.7143]
[1757030681084,0.238,4304.3,4304.2,0.3052]
[1757030681285,0.4345,4304.3,4304.2,0.7143]
[1757030681480,0.9427,4304.3,4304.2,0.7143]
[1757030682291,0.7422,4304.3,4304.2,0.7143]
[1757030683395,0.4345,4304.3,4304.2,0.7143]
[1757030683687,0.238,4304.3,4304.2,0.7143]
[1757030684087,0.238,4304.7,4304.3,0.3052]
[1757030684282,0.238,4304.7,4304.6,0.7143]
[1757030685693,0.4345,4304.7,4304.6,0.7143]
[1757030686092,0.7422,4304.7,4304.6,0.7143]
[1757030686294,0.238,4304.7,4304.6,0.7143]
[1757030687097,0.04203746,4305.2,4304.6,0.4091]
[1757030687394,0.98473746,4305.2,4305.1,0.7143]
[1757030687697,0.98473746,4305.2,4304.5,0.1206]
[1757030687698,0.98473746,4305.2,4304.6,0.3052]
[1757030691692,0.98473746,4305.2,4305.1,0.2071]
[1757030692098,0.98473746,4305.2,4305.1,0.512]
[1757030692398,0.98473746,4305.2,4305.1,0.7119]
[1757030694096,0.04203746,4305.2,4305.1,0.7119]
[1757030694508,0.04203746,4305.2,4305.1,1.9216]
[1757030697305,0.04203746,4305.2,4305.1,5.1294]
[1757030697806,0.9316,4306.0,4305.9,0.7119]
[1757030698307,1.0584,4306.0,4305.9,0.7119]
[1757030698607,1.0584,4306.0,4305.9,0.407]
[1757030698807,1.0584,4306.0,4305.9,0.2071]
[1757030699309,0.6936,4305.2,4305.1,4.6246]
[1757030699494,0.6936,4305.2,4305.1,5.1294]
[1757030700504,0.1268,4305.5,4305.1,5.1294]
[1757030700505,0.6936,4305.9,4305.8,0.2071]
[1757030701100,0.403,4305.9,4305.2,0.3049]
[1757030701295,0.202,4305.3,4305.2,0.7119]
[1757030701700,0.2906,4305.6,4305.3,0.3049]
[1757030701901,0.4926,4305.6,4305.5,0.407]
[1757030702103,0.4926,4305.6,4305.5,0.7119]
[1757030702400,0.202,4305.7,4305.6,0.2071]
[1757030702600,0.5286,4306.0,4305.6,0.7119]
[1757030702801,0.4926,4305.9,4305.8,0.407]
[1757030703003,0.6936,4305.9,4305.8,0.7119]
[1757030703212,0.6936,4305.9,4305.8,1.767]
[1757030705625,0.6936,4305.9,4305.8,1.4621]
[1757030706124,0.6936,4305.9,4305.8,1.767]
[1757030706916,0.6936,4305.9,4305.8,1.2622]
[1757030707121,0.6936,4305.9,4305.8,1.0551]
[1757030710219,0.6936,4305.9,4304.9,0.238]
[1757030710220,4.63524,4305.9,4304.5,0.3049]
[1757030710425,0.1268,4304.5,4304.1,3.2078]
[1757030710626,0.6936,4304.2,4304.1,3.9197]
[1757030710821,0.6936,4304.2,4304.1,0.407]
[1757030711021,0.6936,4304.2,4304.1,0.2071]
[1757030711322,0.6936,4304.4,4304.3,0.7119]
[1757030711517,0.9316,4304.4,4304.3,0.407]
[1757030711723,0.9316,4304.4,4304.3,0.2071]
[1757030711914,0.1268,4304.0,4303.9,1.0916]
[1757030712119,1.0584,4304.0,4303.9,1.0916]
[1757030712321,0.6936,4303.1,4303.0,0.2071]
[1757030712623,0.6936,4302.7,4302.6,0.2071]
[1757030712824,0.9316,4302.7,4302.6,0.2071]
[1757030714025,0.9316,4302.7,4302.6,0.512]
[1757030714721,0.9316,4302.7,4302.6,0.7119]
[1757030714920,3.9014,4303.4,4303.3,0.2071]
[1757030715114,4.1394,4303.4,4303.3,0.2071]
[1757030715316,4.1394,4303.4,4303.0,0.3049]
[1757030715525,4.1394,4303.4,4302.6,0.3049]
[1757030716224,0.9316,4303.3,4303.2,0.2071]
[1757030716526,0.9316,4303.3,4303.2,0.7119]
[1757030717028,0.4926,4303.8,4303.7,0.407]
[1757030717224,0.7306,4303.8,4303.7,0.7119]
[1757030717524,3.2078,4303.9,4303.8,0.3049]
[1757030717727,3.2078,4303.9,4303.8,0.7119]
[1757030717928,3.4458,4303.9,4303.8,0.7119]
[1757030718225,0.238,4303.9,4303.8,0.7119]
[1757030718416,0.238,4304.2,4303.8,0.407]
[1757030718620,0.238,4304.2,4304.0,0.2052]
[1757030718621,0.7065,4304.1,4304.0,0.2052]
[1757030718822,0.7065,4304.1,4304.0,0.4037]
[1757030719127,0.1948,4304.1,4304.0,0.8409]
[1757030719529,0.238,4304.2,4304.0,0.5289]
[1757030719728,0.238,4304.2,4304.1,0.7157]
[1757030720026,0.9445,4304.2,4304.1,0.7157]
[1757030720716,0.4328,4304.2,4304.1,0.7157]
[1757030723320,0.238,4304.2,4304.1,0.7157]
[1757030723930,0.4328,4304.2,4304.1,0.7157]
[1757030724424,0.3099,4304.9,4304.2,0.312]
[1757030724625,0.4328,4304.8,4304.7,0.4037]
[1757030724830,3.2078,4305.0,4304.8,0.312]
[1757030725025,3.4026,4305.0,4304.9,0.7157]
[1757030725233,3.2078,4305.0,4304.9,0.7157]
[1757030725535,0.9445,4305.3,4305.2,0.7157]
[1757030726529,0.9445,4305.3,4305.2,0.4037]
[1757030726834,0.9445,4305.3,4305.2,0.2052]
[1757030727029,0.1248,4305.0,4304.9,0.5172]
[1757030727230,0.8313,4305.0,4304.9,0.5172]
[1757030727829,0.8313,4305.0,4304.9,0.7157]
[1757030728231,0.7065,4304.9,4304.8,0.2052]
[1757030728535,0.7065,4304.9,4304.8,0.7157]
[1757030728935,0.238,4305.0,4304.8,0.7157]
[1757030729129,0.238,4305.0,4304.9,0.312]
[1757030729329,0.238,4305.0,4304.9,0.7157]
[1757030729729,0.3099,4305.6,4305.0,0.4372]
[1757030729933,0.7065,4305.6,4305.5,0.2052]
[1757030730137,0.9445,4305.6,4305.5,0.7157]
[1757030731330,0.9445,4305.6,4305.5,0.2052]
[1757030731529,0.9445,4305.6,4305.5,0.7157]
[1757030732637,0.3099,4305.6,4305.5,0.7157]
[1757030732841,0.9445,4305.6,4305.5,0.7157]
[1757030736034,0.9445,4305.6,4305.5,0.4037]
[1757030736637,0.9445,4305.6,4305.5,0.7157]
[1757030737437,0.9445,4305.6,4305.5,0.4037]
[1757030737636,0.4347,4305.5,4305.2,1.1361]
[1757030737838,0.7065,4305.3,4305.2,1.0293]
[1757030738033,0.3099,4304.9,4304.6,1.2331]
[1757030738234,0.7065,4304.7,4304.6,1.2331]
[1757030738746,0.3099,4304.6,4304.0,0.4372]
[1757030738939,0.3628,4304.5,4304.0,0.8409]
[1757030739239,0.5047,4304.4,4304.3,0.4037]
[1757030739545,0.5047,4304.4,4304.3,0.7157]
[1757030740446,0.7065,4304.4,4304.3,0.7157]
[1757030742144,3.5177,4305.3,4304.5,0.1252]
[1757030742343,0.5214,4305.0,4304.9,0.2052]
[1757030742546,0.8313,4305.0,4304.6,0.312]
[1757030742845,0.8313,4305.0,4304.1,2.2031]
[1757030742846,0.3099,4304.6,4304.2,0.4037]
[1757030743046,0.5047,4304.6,4304.5,0.7157]
[1757030744043,0.7065,4304.6,4304.5,0.7157]
[1757030746049,0.7065,4304.6,4304.2,0.312]
[1757030746249,0.3966,4304.3,4304.2,0.7157]
[1757030746452,0.7065,4304.3,4304.2,0.7157]
[1757030747149,0.7065,4304.3,4304.1,2.2031]
[1757030747346,0.9445,4304.2,4304.1,2.2031]
[1757030747547,0.3099,4304.1,4303.4,3.2078]
[1757030747747,0.7065,4303.5,4303.4,3.2078]
[1757030747946,0.9445,4303.5,4303.4,3.5238]
[1757030749150,0.9445,4303.5,4303.4,3.7365]
[1757030750549,0.6346,4303.5,4303.4,3.9397]
[1757030750955,0.6346,4303.5,4303.4,0.7319]
[1757030752452,0.4328,4303.5,4303.4,0.7319]
[1757030752757,0.2118,4303.6,4303.5,0.4336]
[1757030752956,0.4498,4303.6,4303.5,0.8495]
[1757030753553,0.6555,4303.6,4303.5,0.8495]
[1757030753753,0.9553,4303.6,4303.5,0.8495]
[1757030754455,0.6555,4303.6,4303.5,0.8495]
[1757030756357,3.2078,4303.8,4303.5,0.5335]
[1757030756554,0.238,4303.9,4303.8,0.7319]
[1757030756952,0.4498,4303.9,4303.8,0.7319]
[1757030757454,0.238,4303.9,4303.8,0.7319]
[1757030760760,0.4498,4303.9,4303.8,0.7319]
[1757030762365,0.4498,4303.9,4303.0,1.0277]
[1757030762366,0.2118,4303.1,4303.0,1.5216]
[1757030762567,0.4175,4303.1,4303.0,1.5216]
[1757030762859,0.7173,4303.1,4303.0,0.8571]
[1757030763058,0.4175,4303.1,4303.0,0.8571]
[1757030763863,0.4498,4303.4,4303.3,0.4159]
[1757030764056,0.4498,4303.4,4303.3,0.7319]
[1757030764254,0.6555,4303.4,4303.3,0.7319]
[1757030764759,0.4175,4303.4,4303.3,0.7319]
[1757030764965,0.238,4303.4,4303.3,0.4159]
[1757030765560,0.238,4303.4,4303.3,0.7319]
[1757030766563,0.238,4303.4,4303.3,3.9397]
[1757030766759,3.4196,4304.3,4304.2,0.2127]
[1757030766966,4.0491,4304.3,4303.5,0.1176]
[1757030767267,4.0491,4304.3,4303.3,3.2078]
[1757030767463,0.2118,4303.4,4303.3,0.7319]
[1757030768664,0.238,4303.5,4303.3,0.4159]
[1757030768870,0.238,4303.5,4303.4,0.7319]
[1757030769262,0.2998,4304.1,4303.5,0.1176]
[1757030769471,0.9553,4303.9,4303.8,0.5287]
[1757030770062,0.9553,4303.9,4303.8,0.7319]
[1757030771764,0.6555,4303.9,4303.8,0.7319]
[1757030772071,0.238,4304.1,4304.0,0.5335]
[1757030772271,0.2998,4305.4,4304.9,0.316]
[1757030772467,0.4175,4304.6,4304.5,0.2127]
[1757030772667,0.2998,4304.5,4304.1,3.2078]
[1757030772970,0.2118,4304.5,4304.4,0.7319]
[1757030773167,3.6253,4305.1,4305.0,0.3303]
[1757030773358,3.8633,4305.1,4305.0,0.8495]
[1757030773965,4.1631,4305.1,4305.0,0.8495]
[1757030774673,4.1631,4305.1,4305.0,0.316]
[1757030774868,4.1631,4305.1,4305.0,0.5287]
[1757030775065,4.1631,4305.1,4305.0,0.316]
[1757030776166,4.1631,4305.1,4304.6,0.316]
[1757030776572,4.1631,4305.1,4304.5,0.1176]
[1757030776774,0.7173,4304.1,4304.0,0.8495]
[1757030777272,0.4175,4304.1,4304.0,0.8495]
[1757030778372,0.238,4304.5,4304.0,0.8495]
[1757030778671,0.238,4304.5,4304.4,0.4956]
[1757030778672,0.6302,4304.5,4304.4,0.4956]
[1757030778874,0.9497,4304.5,4304.4,0.4956]
[1757030780780,0.6302,4304.5,4304.4,0.7037]
[1757030781374,0.9497,4304.5,4304.4,0.4956]
[1757030783074,0.9497,4304.5,4304.0,0.1176]
[1757030783278,0.3922,4304.2,4304.1,0.4956]
[1757030783478,0.7117,4304.2,4304.1,0.4956]
[1757030784182,0.9497,4304.2,4304.1,0.4956]
[1757030787085,0.6302,4304.2,4304.1,0.7037]
[1757030787281,0.238,4304.2,4304.1,0.7037]
[1757030787579,0.4343,4304.2,4304.1,0.7037]
[1757030790683,0.238,4304.2,4304.1,0.7037]
[1757030791270,3.4458,4304.6,4304.1,0.7037]
[1757030791582,3.4458,4304.6,4304.5,0.8235]
[1757030791881,3.838,4304.6,4304.5,0.8235]
[1757030792277,4.1575,4304.6,4304.5,0.8235]
[1757030794282,3.838,4304.6,4304.5,0.8235]
[1757030795884,0.3195,4304.5,4304.3,0.5532]
[1757030796079,0.7117,4304.4,4304.3,0.2635]
[1757030796273,1.39084655,4304.4,4304.3,0.2635]
[1757030796474,0.416,4304.0,4303.6,0.2897]
[1757030796783,0.416,4303.7,4303.6,0.2897]
[1757030796978,0.654,4303.7,4303.6,0.2897]
[1757030797573,0.654,4303.7,4303.6,0.7037]
[1757030797574,0.555,4303.7,4303.6,0.7037]
[1757030797779,3.4458,4304.1,4304.0,0.1198]
[1757030797980,3.4458,4304.1,4304.0,0.8235]
[1757030799987,0.238,4304.1,4304.0,0.8235]
[1757030801986,0.3965,4304.1,4304.0,0.8235]
[1757030803482,3.8618,4304.1,4304.0,0.2897]
[1757030803883,3.8618,4304.1,4304.0,0.4095]
[1757030806092,3.7628,4304.1,4304.0,0.6154]
[1757030806392,3.7628,4304.1,4304.0,0.8235]
[1757030806993,0.238,4304.1,4304.0,0.8235]
[1757030808197,3.2078,4304.7,4304.0,0.5338]
[1757030808389,0.238,4304.6,4304.5,0.539]
[1757030808588,0.238,4304.6,4304.5,0.8304]
[1757030811190,0.555,4304.6,4304.5,0.8304]
[1757030811396,0.654,4304.6,4304.5,0.4185]
[1757030811589,3.8618,4304.6,4304.5,0.2914]
[1757030811787,0.416,4304.2,4304.1,0.2914]
[1757030812188,0.317,4303.6,4302.5,0.1271]
[1757030812497,0.7044,4302.7,4302.6,0.2914]
[1757030812686,0.9414,4302.7,4302.6,0.2914]
[1757030814788,0.9414,4302.7,4302.5,3.0413]
[1757030814789,0.6371,4302.7,4302.5,3.0413]
[1757030814995,0.4001,4301.9,4301.8,0.5024]
[1757030815301,0.4001,4301.9,4301.8,0.7033]
[1757030815696,0.1988,4301.9,4301.8,0.7033]
[1757030817395,3.2078,4302.6,4301.9,0.2914]
[1757030817591,0.1988,4302.0,4301.9,0.7033]
[1757030818097,0.7044,4302.0,4301.9,0.5024]
[1757030818302,0.4001,4302.0,4301.9,0.7033]
[1757030818800,0.1988,4302.0,4301.9,0.7033]
[1757030821109,0.4001,4302.0,4301.9,0.7033]
[1757030821304,0.4001,4302.0,4301.5,0.1271]
[1757030821305,0.3043,4301.9,4301.5,0.1271]
[1757030821607,0.7044,4301.6,4301.5,0.6295]
[1757030822021,0.3043,4301.5,4301.3,0.2914]
[1757030822220,0.7044,4301.4,4301.3,0.5024]
[1757030822807,0.3043,4301.3,4301.1,0.2914]
[1757030823014,0.7044,4301.2,4300.7,0.2914]
[1757030823216,0.1988,4300.8,4300.7,0.7033]
[1757030823707,0.4001,4300.8,4300.7,0.7033]
[1757030824115,0.1988,4300.8,4300.7,0.7033]
[1757030824815,0.238,4301.4,4301.0,0.1271]
[1757030825019,0.4368,4301.4,4301.3,0.7033]
[1757030827218,0.6381,4301.4,4301.3,0.7033]
[1757030827418,0.9424,4301.4,4301.3,0.7033]
[1757030827714,0.6381,4301.4,4301.3,0.7033]
[1757030830224,0.9424,4301.4,4301.3,0.7033]
[1757030833130,0.4001,4301.2,4300.6,3.2078]
[1757030833321,0.7044,4300.7,4300.6,0.5024]
[1757030834421,0.7044,4300.7,4300.1,0.2914]
[1757030834626,0.4001,4300.2,4300.1,0.7033]
[1757030836924,0.7044,4300.2,4300.1,0.5024]
[1757030837526,0.238,4300.3,4299.5,3.3349]
[1757030837527,0.3043,4300.1,4299.5,0.1271]
[1757030837729,0.4001,4299.6,4299.5,0.3381]
[1757030837929,0.314,4299.5,4299.0,3.3349]
[1757030838225,0.41,4299.1,4298.5,0.1271]
[1757030838424,0.724,4298.7,4298.6,0.5171]
[1757030838837,0.724,4298.7,4298.1,0.3193]
[1757030839128,0.41,4298.2,4298.1,0.7261]
[1757030839433,0.962,4298.2,4298.1,0.7261]
[1757030839819,0.962,4298.2,4297.6,0.3193]
[1757030840832,0.41,4297.2,4297.1,0.7261]
[1757030841527,0.238,4297.3,4297.2,0.3193]
[1757030841733,0.238,4297.3,4297.2,0.7261]
[1757030842125,0.4435,4297.3,4297.2,0.7261]
[1757030842325,0.962,4297.3,4297.2,0.5171]
[1757030842625,0.962,4297.3,4297.2,0.3193]
[1757030843027,0.962,4297.3,4297.2,0.5171]
[1757030843227,0.238,4297.3,4297.0,0.4476]
[1757030843426,0.238,4297.3,4297.0,0.5171]
[1757030843427,0.724,4297.1,4297.0,0.5171]
[1757030843925,0.724,4297.1,4296.0,0.1283]
[1757030843926,0.41,4296.5,4296.4,3.9339]
[1757030844232,3.9318,4297.3,4297.2,0.1978]
[1757030844436,4.8431173,4297.3,4297.2,0.5171]
[1757030844635,4.8431173,4297.3,4296.6,0.3193]
[1757030844824,0.314,4296.6,4296.4,3.2078]
[1757030845031,0.724,4296.3,4296.0,0.1283]
[1757030845334,0.724,4296.2,4296.1,0.5171]
[1757030846038,0.724,4296.2,4295.6,0.3193]
[1757030846426,0.314,4296.1,4295.5,0.4476]
[1757030846733,0.1163,4296.0,4295.9,0.7261]
[1757030847132,3.2078,4296.8,4296.5,0.1283]
[1757030847433,3.2078,4296.8,4296.7,0.7261]
[1757030849038,3.4133,4296.8,4296.7,0.7261]
[1757030849332,0.2055,4296.8,4296.7,0.7261]
[1757030849629,0.724,4296.2,4296.1,0.5171]
[1757030849834,0.724,4296.2,4295.7,3.2078]
[1757030849835,0.648,4296.2,4295.8,0.3193]
[1757030850137,0.552,4296.2,4295.7,3.6146]
[1757030850438,0.41,4296.7,4296.6,0.4068]
[1757030850631,0.90941237,4296.7,4296.6,0.7261]
[1757030850830,0.4435,4296.7,4296.6,0.7261]
[1757030851232,0.648,4296.7,4296.6,0.7261]
[1757030851934,0.962,4296.7,4296.6,0.7261]
[1757030852127,1.63355758,4296.7,4296.6,0.7261]
[1757030852528,0.962,4296.7,4296.6,0.7261]
[1757030852726,1.63355787,4296.7,4296.6,0.7261]
[1757030853129,1.63355787,4296.7,4296.0,0.1283]
[1757030853335,0.2055,4296.2,4296.1,0.7261]
[1757030854437,3.2078,4296.9,4296.1,0.4068]
[1757030854642,1.63356397,4296.8,4296.0,0.1283]
[1757030854830,1.08156397,4296.7,4296.1,0.3193]
[1757030855033,1.39556397,4296.6,4296.5,0.5171]
[1757030855336,1.39556397,4296.6,4296.5,0.7261]
[1757030855545,0.67156397,4296.6,4296.5,0.8544]
[1757030855738,0.4435,4296.8,4296.7,0.4068]
[1757030855934,0.962,4296.8,4296.7,0.7261]
[1757030856242,1.63369745,4296.8,4296.7,0.7261]
[1757030856933,1.31969745,4296.8,4296.7,0.7261]
[1757030857135,0.4435,4296.8,4296.7,0.7261]
[1757030857327,1.11558155,4296.8,4296.7,0.7261]
[1757030858537,0.91008155,4296.8,4296.7,0.7261]
[1757030858842,0.67208155,4296.8,4296.7,0.7261]
[1757030859041,0.67208155,4296.8,4296.5,0.1283]
[1757030859042,3.4133,4297.4,4297.3,0.7261]
[1757030859340,0.67246483,4297.4,4297.3,0.7261]
[1757030859535,0.67246483,4297.4,4297.3,4.7261]
[1757030860543,0.87796483,4297.4,4297.3,0.7261]
[1757030860839,0.87796483,4297.4,4297.3,0.3193]
[1757030860840,1.63446483,4297.4,4297.3,0.3193]
[1757030861038,0.41,4297.1,4297.0,0.6454]
[1757030861343,1.08246483,4297.1,4297.0,0.8544]
[1757030862044,1.39646483,4297.1,4297.0,0.8544]
[1757030862440,1.39646483,4297.1,4297.0,0.5171]
[1757030862642,0.67246483,4297.1,4297.0,0.8544]
[1757030862846,1.08246483,4297.1,4297.0,0.8544]
[1757030863046,1.39646483,4297.1,4297.0,0.5171]
[1757030863347,1.39646483,4297.1,4297.0,4.8544]
[1757030863348,0.67246483,4297.1,4297.0,4.8544]
[1757030864446,0.67246483,4297.1,4297.0,0.8544]
[1757030866642,0.5195,4297.0,4296.9,0.1978]
[1757030866842,1.39646483,4297.0,4296.9,0.5171]
[1757030867239,1.39646483,4297.0,4296.6,3.5271]
[1757030867240,0.41,4296.7,4296.6,3.5271]
[1757030867550,1.08246483,4296.7,4296.6,3.9339]
[1757030868044,1.40126483,4296.7,4296.6,3.7249]
[1757030868347,1.40126483,4296.7,4296.6,3.7184]
[1757030869041,1.08246483,4296.7,4296.6,3.9208]
[1757030869242,1.89971437,4296.7,4296.6,3.9208]
[1757030869437,1.22724954,4296.9,4296.6,8.07874]
[1757030869642,0.52432195,4296.8,4296.7,0.155]
[1757030871143,0.52432195,4296.8,4296.7,4.155]
[1757030871345,0.3188,4297.8,4296.7,4.6516]
[1757030871547,0.3198,4297.5,4297.4,3.2078]
[1757030871746,0.8454,4297.5,4297.4,3.2078]
[1757030873357,4.8454,4297.5,4297.4,3.2078]
[1757030873548,0.8454,4297.0,4296.9,3.2078]
[1757030875450,0.12,4296.5,4296.4,3.2078]
[1757030875650,0.6386,4296.5,4296.4,3.2078]
[1757030876045,0.6386,4296.5,4295.3,3.2078]
[1757030876046,0.12,4296.0,4295.3,3.2078]
[1757030876254,0.3188,4295.9,4295.4,0.238]
[1757030876548,0.3188,4295.9,4295.8,3.2078]
[1757030876761,0.5186,4295.9,4295.8,3.4458]
[1757030877052,0.3188,4295.9,4295.8,3.4458]
[1757030877253,0.3188,4296.4,4295.8,3.4458]
[1757030877456,0.12,4296.5,4295.8,3.4458]
[1757030877756,0.6386,4296.5,4295.8,3.4458]
[1757030878452,0.3198,4297.0,4296.3,3.2078]
[1757030878756,0.12,4297.0,4296.3,3.4458]
[1757030879054,0.3188,4297.1,4296.9,3.2078]
[1757030879557,0.6386,4297.5,4296.9,3.2078]
[1757030879960,0.3188,4297.4,4296.9,3.4458]
[1757030880152,0.3198,4297.5,4296.9,3.4458]
[1757030880355,0.3188,4297.4,4296.9,3.4458]
[1757030880550,0.3188,4297.3,4296.9,3.4458]
[1757030881056,0.12,4297.5,4296.9,3.4458]
[1757030881359,0.3188,4297.4,4296.9,3.4458]
[1757030881552,0.3188,4297.3,4296.9,3.4458]
[1757030881758,0.12,4297.5,4296.9,3.4458]
[1757030881955,0.3188,4296.9,4296.4,3.2078]
[1757030882156,0.12,4297.0,4296.4,3.2078]
[1757030882352,0.3198,4297.0,4296.4,3.2078]
[1757030882558,0.3198,4297.0,4294.7,0.00958]
[1757030882559,0.8454,4296.5,4295.8,3.2078]
[1757030882852,0.3188,4295.4,4295.3,3.2078]
[1757030884153,4.3188,4295.4,4293.7,0.3128]
[1757030884450,4.3188,4295.4,4293.3,2.92396047]
[1757030884451,3.2078,4293.9,4293.3,2.69126047]
[1757030884664,2.8858,4293.4,4293.0,0.1272]
[1757030884854,0.3188,4294.3,4293.1,0.249]
[1757030885049,3.5266,4294.9,4293.5,3.335]
[1757030885259,3.2078,4295.4,4294.5,0.1272]
[1757030885561,3.2078,4295.4,4294.6,0.257]
[1757030886363,0.3188,4295.3,4294.7,0.257]
[1757030886562,0.3188,4295.3,4294.6,0.3128]
[1757030886861,0.3188,4295.3,4294.7,0.257]
[1757030887560,3.2078,4295.4,4294.8,0.3128]
[1757030887759,3.2078,4296.0,4295.1,0.3128]
[1757030888155,3.2078,4296.0,4295.2,0.257]
[1757030888355,3.2078,4296.0,4295.3,0.3128]
[1757030889156,3.3278,4296.0,4295.4,0.257]
[1757030889359,3.6466,4296.0,4295.4,0.257]
[1757030890365,3.6466,4296.0,4295.3,0.3128]
[1757030890565,3.6466,4296.0,4295.4,0.257]
[1757030890763,3.6466,4296.0,4295.3,0.3128]
[1757030892063,0.3188,4295.9,4295.3,0.3128]
[1757030892261,0.3188,4295.9,4295.1,0.256]
[1757030892659,3.3278,4296.0,4293.9,3.2078]
[1757030892660,0.3188,4295.3,4293.9,3.2078]
[1757030892968,0.3188,4295.3,4294.5,0.256]
[1757030893165,0.3188,4295.1,4294.5,0.256]
[1757030893565,0.12,4295.0,4294.4,0.3128]
[1757030893772,3.2078,4294.9,4293.9,3.2078]
[1757030893962,0.3188,4294.8,4294.1,0.256]
[1757030894971,0.3188,4294.8,4294.2,0.3128]
[1757030895564,0.3188,4294.8,4293.5,0.1272]
[1757030895565,3.2078,4294.4,4293.7,0.3128]
[1757030895770,0.3188,4294.3,4293.7,0.3128]
[1757030895971,0.3188,4294.3,4293.4,3.2078]
[1757030896161,0.3188,4294.3,4293.5,0.3128]
[1757030896674,0.3188,4294.8,4294.1,0.3128]
[1757030897269,3.2078,4294.9,4294.1,0.3128]
[1757030898372,3.5133,4294.9,4294.2,0.256]
[1757030898574,3.2078,4294.9,4294.3,0.2905]
[1757030899878,0.3055,4295.0,4294.3,0.2905]
[1757030900078,0.3055,4295.0,4294.3,0.5455]
[1757030900781,0.3055,4295.0,4294.4,3.4983]
[1757030901074,0.1208,4295.0,4294.4,3.4983]
[1757030901279,0.3055,4294.9,4294.4,3.4983]
[1757030901780,0.1208,4295.0,4294.4,3.4983]
[1757030902377,0.3055,4294.9,4294.4,3.2078]
[1757030902582,0.1208,4295.0,4294.4,3.2078]